[Event "*** Titled Tuesday 3|2 Blitz"]
[Site "Chess.com"]
[Date "2016.08.02"]
[Round "4"]
[White "maciek_92"]
[Black "fastestmindalive"]
[Result "0-1"]
[WhiteElo "2592"]
[BlackElo "2403"]
[TimeControl "180+2"]
[EndTime "11:53:08 PDT"]
[Termination "fastestmindalive won on time"]

1. c4 {[%clk 0:03:00]} 1... d5 {[%clk 0:02:55.4]} 2. cxd5 {[%clk 0:02:52.7]}
2... Qxd5 {[%clk 0:02:57.3]} 3. Nc3 {[%clk 0:02:52.9]} 3... Qa5 {[%clk
0:02:54.6]} 4. g3 {[%clk 0:02:50.8]} 4... e5 {[%clk 0:02:52.1]} 5. Bg2 {[%clk
0:02:51.7]} 5... Nf6 {[%clk 0:02:52]} 6. d3 {[%clk 0:02:52.1]} 6... Nc6 {[%clk
0:02:51.4]} 7. Bd2 {[%clk 0:02:52.4]} 7... Qb6 {[%clk 0:02:34.4]} 8. Nf3 {[%clk
0:02:53.4]} 8... Bd6 {[%clk 0:02:31]} 9. O-O {[%clk 0:02:54.2]} 9... Qxb2 {[%clk
0:02:19.6]} 10. Qa4 {[%clk 0:02:49.3]} 10... Qb4 {[%clk 0:02:10.6]} 11. Qc2
{[%clk 0:02:50.2]} 11... Qg4 {[%clk 0:02:08.2]} 12. h3 {[%clk 0:02:43.2]} 12...
Qd7 {[%clk 0:02:08.8]} 13. Bg5 {[%clk 0:02:33.7]} 13... O-O {[%clk 0:02:04.5]}
14. Rab1 {[%clk 0:02:31.4]} 14... Be7 {[%clk 0:01:59]} 15. Rfc1 {[%clk
0:02:27.3]} 15... h6 {[%clk 0:01:59.3]} 16. Bxf6 {[%clk 0:02:17.5]} 16... Bxf6
{[%clk 0:02:01.2]} 17. Nd2 {[%clk 0:02:12.4]} 17... Nd4 {[%clk 0:02:00.2]} 18.
Qd1 {[%clk 0:02:11.9]} 18... c6 {[%clk 0:02:01.4]} 19. Nde4 {[%clk 0:02:04.7]}
19... Be7 {[%clk 0:02:02.2]} 20. Na4 {[%clk 0:02:05.5]} 20... Ne6 {[%clk
0:01:58.1]} 21. Nec5 {[%clk 0:02:00.1]} 21... Nxc5 {[%clk 0:01:58.7]} 22. Nxc5
{[%clk 0:02:00.8]} 22... Bxc5 {[%clk 0:02:00.1]} 23. Rxc5 {[%clk 0:02:01.8]}
23... Qe7 {[%clk 0:02:01.2]} 24. Qc2 {[%clk 0:02:02]} 24... f6 {[%clk
0:01:53.2]} 25. a4 {[%clk 0:02:02.8]} 25... Be6 {[%clk 0:01:53]} 26. a5 {[%clk
0:02:00.2]} 26... a6 {[%clk 0:01:47.7]} 27. Rc3 {[%clk 0:01:59.5]} 27... Rfd8
{[%clk 0:01:45]} 28. Qb2 {[%clk 0:01:54.9]} 28... Rd7 {[%clk 0:01:43.8]} 29. Qb6
{[%clk 0:01:49.9]} 29... Rc8 {[%clk 0:01:44.7]} 30. Rb4 {[%clk 0:01:48.6]} 30...
Rcc7 {[%clk 0:01:44.5]} 31. h4 {[%clk 0:01:45.3]} 31... Qf7 {[%clk 0:01:28]} 32.
Rb2 {[%clk 0:01:39.1]} 32... g5 {[%clk 0:01:22.7]} 33. hxg5 {[%clk 0:01:39.3]}
33... hxg5 {[%clk 0:01:23.7]} 34. Qa7 {[%clk 0:01:37.2]} 34... Qf8 {[%clk
0:01:13.1]} 35. Kf1 {[%clk 0:01:27.4]} 35... Bd5 {[%clk 0:01:09.2]} 36. Bh3
{[%clk 0:01:22.6]} 36... Rh7 {[%clk 0:01:08.8]} 37. Bg2 {[%clk 0:01:16.8]} 37...
Bxg2+ {[%clk 0:00:56.5]} 38. Kxg2 {[%clk 0:01:17.4]} 38... Qc8 {[%clk
0:00:57.8]} 39. Kf3 {[%clk 0:01:06.8]} 39... Rhd7 {[%clk 0:00:33]} 40. Qc5
{[%clk 0:00:58.7]} 40... Qe8 {[%clk 0:00:33.2]} 41. Rb1 {[%clk 0:00:52.9]} 41...
Qe6 {[%clk 0:00:32.4]} 42. Qa3 {[%clk 0:00:47.8]} 42... Qd5+ {[%clk 0:00:32.5]}
43. e4 {[%clk 0:00:43.7]} 43... Qf7 {[%clk 0:00:25.6]} 44. Rh1 {[%clk
0:00:38.8]} 44... Kg7 {[%clk 0:00:21.7]} 45. Qc1 {[%clk 0:00:33.8]} 45... Kg8
{[%clk 0:00:16.2]} 46. Qf1 {[%clk 0:00:29.4]} 46... Qe6 {[%clk 0:00:16.2]} 47.
Qh3 {[%clk 0:00:20.8]} 47... Qxh3 {[%clk 0:00:14.4]} 48. Rxh3 {[%clk 0:00:22.1]}
48... Rd4 {[%clk 0:00:13.3]} 49. Kg4 {[%clk 0:00:22.4]} 49... Kg7 {[%clk
0:00:10.7]} 50. Kf5 {[%clk 0:00:22.7]} 50... Re7 {[%clk 0:00:12.3]} 51. Rh1
{[%clk 0:00:18.2]} 51... Ra4 {[%clk 0:00:13.2]} 52. Rc5 {[%clk 0:00:17.6]} 52...
Ra3 {[%clk 0:00:13.6]} 53. Rd1 {[%clk 0:00:17.4]} 53... Ra2 {[%clk 0:00:14.8]}
54. f3 {[%clk 0:00:17.7]} 54... Rf2 {[%clk 0:00:15.4]} 55. Kg4 {[%clk
0:00:18.7]} 55... Kg6 {[%clk 0:00:16.6]} 56. Rb1 {[%clk 0:00:18.9]} 56... Rh7
{[%clk 0:00:17.2]} 57. Rb3 {[%clk 0:00:14.3]} 57... Rg2 {[%clk 0:00:17.3]} 58.
f4 {[%clk 0:00:15]} 58... gxf4 {[%clk 0:00:18.3]} 59. d4 {[%clk 0:00:15.9]}
59... Rxg3+ {[%clk 0:00:15.4]} 60. Rxg3 {[%clk 0:00:16.8]} 60... fxg3 {[%clk
0:00:17.3]} 61. Kxg3 {[%clk 0:00:18.3]} 61... exd4 {[%clk 0:00:18.6]} 62. Rc4
{[%clk 0:00:19.1]} 62... Rd7 {[%clk 0:00:19.5]} 0-1

[Event "*** Titled Tuesday 3|2 Blitz"]
[Site "Chess.com"]
[Date "2016.08.02"]
[Round "4"]
[White "wnstop"]
[Black "TyIerDurden"]
[Result "0-1"]
[WhiteElo "2457"]
[BlackElo "2480"]
[TimeControl "180+2"]
[EndTime "11:53:44 PDT"]
[Termination "TyIerDurden won by resignation"]

1. e4 {[%clk 0:03:01.9]} 1... e6 {[%clk 0:03:00.8]} 2. d4 {[%clk 0:03:02.7]}
2... d5 {[%clk 0:03:01.9]} 3. Nd2 {[%clk 0:03:03.5]} 3... dxe4 {[%clk
0:03:03.8]} 4. Nxe4 {[%clk 0:03:02.2]} 4... Bd7 {[%clk 0:03:05.7]} 5. Nf3 {[%clk
0:03:02.3]} 5... Bc6 {[%clk 0:03:06.1]} 6. Bd3 {[%clk 0:03:03.9]} 6... Nd7
{[%clk 0:03:04.4]} 7. O-O {[%clk 0:03:04.7]} 7... Ngf6 {[%clk 0:03:04.8]} 8.
Ned2 {[%clk 0:03:05.7]} 8... Be7 {[%clk 0:02:58.3]} 9. Re1 {[%clk 0:03:05.3]}
9... O-O {[%clk 0:02:53.1]} 10. Nc4 {[%clk 0:03:06]} 10... Bd5 {[%clk
0:02:51.3]} 11. Ne3 {[%clk 0:03:02.9]} 11... Be4 {[%clk 0:02:36.6]} 12. Bf1
{[%clk 0:02:49.8]} 12... c5 {[%clk 0:02:34.4]} 13. c3 {[%clk 0:02:33.4]} 13...
cxd4 {[%clk 0:02:28.9]} 14. Nxd4 {[%clk 0:02:32.4]} 14... a6 {[%clk 0:02:29.9]}
15. Ng4 {[%clk 0:02:25.3]} 15... Nxg4 {[%clk 0:02:08.8]} 16. Rxe4 {[%clk
0:02:17.2]} 16... Ngf6 {[%clk 0:02:09.7]} 17. Re1 {[%clk 0:02:18]} 17... Rc8
{[%clk 0:02:05.7]} 18. Qf3 {[%clk 0:02:11.4]} 18... Qc7 {[%clk 0:01:45.9]} 19.
Bf4 {[%clk 0:02:07.5]} 19... Qb6 {[%clk 0:01:38.2]} 20. Rab1 {[%clk 0:01:37.1]}
20... Rfe8 {[%clk 0:01:29.3]} 21. Qh3 {[%clk 0:01:30.6]} 21... Bd6 {[%clk
0:01:27.2]} 22. Be3 {[%clk 0:01:27.6]} 22... Bc5 {[%clk 0:01:24.9]} 23. b4
{[%clk 0:01:23.4]} 23... Bf8 {[%clk 0:01:25.9]} 24. c4 {[%clk 0:01:09.9]} 24...
Ne5 {[%clk 0:01:19.5]} 25. c5 {[%clk 0:01:01.2]} 25... Qd8 {[%clk 0:01:20.4]}
26. Rbd1 {[%clk 0:01:00.4]} 26... Nd5 {[%clk 0:01:16.4]} 27. Nf3 {[%clk
0:00:52.7]} 27... Nxf3+ {[%clk 0:01:12.1]} 28. Qxf3 {[%clk 0:00:54.6]} 28... Qc7
{[%clk 0:01:13.4]} 29. Bd2 {[%clk 0:00:51.8]} 29... a5 {[%clk 0:01:03.7]} 30. a3
{[%clk 0:00:52.1]} 30... axb4 {[%clk 0:01:00.4]} 31. axb4 {[%clk 0:00:54]} 31...
b6 {[%clk 0:01:02.3]} 32. Bb5 {[%clk 0:00:38.2]} 32... Red8 {[%clk 0:01:02.5]}
33. c6 {[%clk 0:00:30.6]} 33... Nxb4 {[%clk 0:00:54.3]} 34. Bf4 {[%clk
0:00:17.4]} 34... Rxd1 {[%clk 0:00:30.2]} 35. Rxd1 {[%clk 0:00:17.5]} 35... Qa7
{[%clk 0:00:31.1]} 36. c7 {[%clk 0:00:16.4]} 36... Nd5 {[%clk 0:00:30.2]} 37.
Bg3 {[%clk 0:00:15.1]} 37... Rxc7 {[%clk 0:00:27.2]} 38. Bxc7 {[%clk 0:00:15.6]}
38... Qxc7 {[%clk 0:00:29.1]} 39. h4 {[%clk 0:00:16.1]} 39... Qc2 {[%clk
0:00:27.6]} 40. Be8 {[%clk 0:00:13.9]} 40... Qc7 {[%clk 0:00:26.3]} 41. h5
{[%clk 0:00:14]} 41... h6 {[%clk 0:00:25.3]} 42. Ra1 {[%clk 0:00:14.8]} 42...
Nf6 {[%clk 0:00:22.3]} 43. Bb5 {[%clk 0:00:15]} 43... Qe5 {[%clk 0:00:19.6]} 44.
Rb1 {[%clk 0:00:15]} 44... Qxh5 {[%clk 0:00:20.7]} 45. Qxh5 {[%clk 0:00:15.5]}
45... Nxh5 {[%clk 0:00:21.9]} 46. Be2 {[%clk 0:00:17.1]} 46... Nf4 {[%clk
0:00:19.6]} 47. Bf3 {[%clk 0:00:18.5]} 47... Bc5 {[%clk 0:00:18.7]} 48. Rd1
{[%clk 0:00:19.6]} 48... Kf8 {[%clk 0:00:19.1]} 49. Rd7 {[%clk 0:00:20.2]} 49...
Ng6 {[%clk 0:00:17.7]} 50. Bh5 {[%clk 0:00:17.4]} 50... Ne5 {[%clk 0:00:18.6]}
51. Rb7 {[%clk 0:00:18.6]} 51... g6 {[%clk 0:00:16.9]} 52. Be2 {[%clk
0:00:19.6]} 52... h5 {[%clk 0:00:17.7]} 53. Kf1 {[%clk 0:00:18.8]} 53... h4
{[%clk 0:00:17.1]} 54. f4 {[%clk 0:00:19.3]} 54... Nc6 {[%clk 0:00:16.1]} 55.
Bb5 {[%clk 0:00:16.9]} 55... Nd4 {[%clk 0:00:17.2]} 56. Rb8+ {[%clk 0:00:15.2]}
56... Kg7 {[%clk 0:00:18.4]} 57. Be8 {[%clk 0:00:16.3]} 57... Nf5 {[%clk
0:00:15.8]} 58. Ke2 {[%clk 0:00:15]} 58... b5 {[%clk 0:00:17.1]} 59. Bxb5 {[%clk
0:00:15.2]} 59... Nd4+ {[%clk 0:00:15.9]} 60. Kd3 {[%clk 0:00:15]} 60... Bd6
{[%clk 0:00:17.2]} 61. Rd8 {[%clk 0:00:13.4]} 61... Nxb5 {[%clk 0:00:16.1]} 62.
Kc4 {[%clk 0:00:13.7]} 62... Bc7 {[%clk 0:00:15.1]} 63. Rd7 {[%clk 0:00:13.8]}
63... Nd6+ {[%clk 0:00:14.4]} 64. Kc5 {[%clk 0:00:14.5]} 64... Ne8 {[%clk
0:00:13.1]} 65. Rd4 {[%clk 0:00:12.3]} 65... Nf6 {[%clk 0:00:12.5]} 66. f5
{[%clk 0:00:10.5]} 66... h3 {[%clk 0:00:12.1]} 67. gxh3 {[%clk 0:00:04.1]} 67...
gxf5 {[%clk 0:00:14]} 68. Kc6 {[%clk 0:00:04.6]} 68... Nd5 {[%clk 0:00:12.9]}
69. Kd7 {[%clk 0:00:05.5]} 69... Bb6 {[%clk 0:00:11.8]} 70. Rd1 {[%clk
0:00:05.6]} 70... Be3 {[%clk 0:00:13.1]} 71. Ke8 {[%clk 0:00:06.2]} 71... Kf6
{[%clk 0:00:14.3]} 72. Ra1 {[%clk 0:00:06.3]} 72... e5 {[%clk 0:00:15.4]} 73.
Ra6+ {[%clk 0:00:06.8]} 73... Bb6 {[%clk 0:00:15.3]} 74. Kd7 {[%clk 0:00:05.3]}
74... f4 {[%clk 0:00:16.3]} 75. Kc6 {[%clk 0:00:05.9]} 75... Ke6 {[%clk
0:00:16.5]} 76. Ra8 {[%clk 0:00:05.8]} 76... f3 {[%clk 0:00:17.3]} 77. Re8+
{[%clk 0:00:07]} 77... Kf5 {[%clk 0:00:18.4]} 78. Kxd5 {[%clk 0:00:07.9]} 78...
f2 {[%clk 0:00:19.3]} 79. Rxe5+ {[%clk 0:00:07.7]} 79... Kf6 {[%clk 0:00:19.5]}
0-1

[Event "*** Titled Tuesday 3|2 Blitz"]
[Site "Chess.com"]
[Date "2016.08.02"]
[Round "4"]
[White "MaestroASK"]
[Black "Krutoy123"]
[Result "0-1"]
[WhiteElo "2473"]
[BlackElo "2428"]
[TimeControl "180+2"]
[EndTime "11:53:49 PDT"]
[Termination "Krutoy123 won by resignation"]

1. g3 {[%clk 0:03:01.3]} 1... d5 {[%clk 0:02:59.5]} 2. d3 {[%clk 0:03:01.7]}
2... Nf6 {[%clk 0:03:00.8]} 3. Bg2 {[%clk 0:03:01.7]} 3... e6 {[%clk 0:03:02]}
4. e4 {[%clk 0:03:02.1]} 4... dxe4 {[%clk 0:03:02.8]} 5. dxe4 {[%clk 0:03:02.8]}
5... Qxd1+ {[%clk 0:03:03.6]} 6. Kxd1 {[%clk 0:03:04.3]} 6... e5 {[%clk
0:03:03.4]} 7. f3 {[%clk 0:03:05.4]} 7... c6 {[%clk 0:03:03.3]} 8. Bh3 {[%clk
0:03:06.4]} 8... Bxh3 {[%clk 0:03:03.8]} 9. Nxh3 {[%clk 0:03:08.3]} 9... Na6
{[%clk 0:03:03.6]} 10. Nd2 {[%clk 0:03:07]} 10... O-O-O {[%clk 0:03:03]} 11. Ke2
{[%clk 0:03:07.6]} 11... h6 {[%clk 0:02:31.9]} 12. Nc4 {[%clk 0:03:07.3]} 12...
Bd6 {[%clk 0:02:31]} 13. Be3 {[%clk 0:03:05.9]} 13... Bb8 {[%clk 0:02:28.4]} 14.
a4 {[%clk 0:03:02.5]} 14... Nb4 {[%clk 0:02:23.4]} 15. Rhc1 {[%clk 0:02:56.3]}
15... Na6 {[%clk 0:02:08.5]} 16. Nf2 {[%clk 0:02:54.9]} 16... Rhe8 {[%clk
0:02:07.7]} 17. Nd3 {[%clk 0:02:53.9]} 17... Nd7 {[%clk 0:01:41.6]} 18. b4
{[%clk 0:02:48.2]} 18... Re6 {[%clk 0:01:42.8]} 19. b5 {[%clk 0:02:35.5]} 19...
Nc7 {[%clk 0:01:41.7]} 20. Rab1 {[%clk 0:02:29.8]} 20... cxb5 {[%clk 0:01:39.2]}
21. axb5 {[%clk 0:02:29.8]} 21... b6 {[%clk 0:01:40.6]} 22. Nd2 {[%clk
0:02:00.6]} 22... Kb7 {[%clk 0:01:40.5]} 23. c4 {[%clk 0:02:00.7]} 23... Ne8
{[%clk 0:01:26.7]} 24. Nb4 {[%clk 0:01:52]} 24... Rc8 {[%clk 0:01:23.4]} 25. Nc6
{[%clk 0:01:48.8]} 25... Bd6 {[%clk 0:01:20.9]} 26. Nb3 {[%clk 0:01:45.7]} 26...
Nb8 {[%clk 0:01:17.2]} 27. Nxb8 {[%clk 0:01:42.2]} 27... Kxb8 {[%clk 0:01:17]}
28. c5 {[%clk 0:01:27.7]} 28... Bxc5 {[%clk 0:01:08.6]} 29. Bxc5 {[%clk
0:01:27.5]} 29... bxc5 {[%clk 0:01:10.5]} 30. Nxc5 {[%clk 0:01:27.9]} 30... Rd6
{[%clk 0:01:09.1]} 31. Na6+ {[%clk 0:01:24.7]} 31... Kb7 {[%clk 0:01:09]} 32.
Rxc8 {[%clk 0:01:24.1]} 32... Kxc8 {[%clk 0:01:10.9]} 33. Nb4 {[%clk 0:01:19.2]}
33... Kb7 {[%clk 0:01:07.9]} 34. Nc6 {[%clk 0:01:15.2]} 34... f6 {[%clk
0:00:52.8]} 35. Ra1 {[%clk 0:01:14.4]} 35... Nc7 {[%clk 0:00:48.5]} 36. Nxa7
{[%clk 0:01:01.6]} 36... Rb6 {[%clk 0:00:40.7]} 37. Ra5 {[%clk 0:00:58.8]} 37...
Ne8 {[%clk 0:00:29.8]} 38. Nc6 {[%clk 0:00:55.7]} 38... Nc7 {[%clk 0:00:29.1]}
39. Ra7+ {[%clk 0:00:51.6]} 39... Kc8 {[%clk 0:00:30]} 40. Ra5 {[%clk
0:00:41.8]} 40... Nxb5 {[%clk 0:00:24.8]} 41. Na7+ {[%clk 0:00:35.7]} 41... Nxa7
{[%clk 0:00:24.5]} 42. Rxa7 {[%clk 0:00:36.7]} 42... Rb7 {[%clk 0:00:22]} 43.
Ra8+ {[%clk 0:00:33.1]} 43... Kd7 {[%clk 0:00:22.7]} 44. f4 {[%clk 0:00:29.7]}
44... Ke6 {[%clk 0:00:19.3]} 45. Kf3 {[%clk 0:00:29.3]} 45... exf4 {[%clk
0:00:18.3]} 46. gxf4 {[%clk 0:00:29.9]} 46... Rb3+ {[%clk 0:00:19.4]} 47. Kg4
{[%clk 0:00:30.6]} 47... Rb7 {[%clk 0:00:20.3]} 48. f5+ {[%clk 0:00:29.3]} 48...
Kf7 {[%clk 0:00:20.6]} 49. h4 {[%clk 0:00:29]} 49... Rc7 {[%clk 0:00:21]} 50.
Kf4 {[%clk 0:00:29]} 50... Rd7 {[%clk 0:00:22]} 51. Ke3 {[%clk 0:00:29.5]} 51...
Rc7 {[%clk 0:00:22.9]} 52. h5 {[%clk 0:00:30.4]} 52... Rd7 {[%clk 0:00:24.1]}
53. Ra3 {[%clk 0:00:29.1]} 53... Rd1 {[%clk 0:00:25]} 54. Rd3 {[%clk 0:00:29]}
54... Rh1 {[%clk 0:00:24]} 55. Kd4 {[%clk 0:00:29.4]} 55... Rxh5 {[%clk
0:00:24.4]} 56. Ra3 {[%clk 0:00:29.6]} 56... Rh1 {[%clk 0:00:25.4]} 57. Ra7+
{[%clk 0:00:29.6]} 57... Kg8 {[%clk 0:00:26.7]} 58. Ke3 {[%clk 0:00:26.5]} 58...
Re1+ {[%clk 0:00:27.5]} 59. Kf4 {[%clk 0:00:27.6]} 59... Kh7 {[%clk 0:00:28.2]}
60. Ra4 {[%clk 0:00:26.4]} 60... h5 {[%clk 0:00:29]} 61. Ra2 {[%clk 0:00:25.8]}
61... Kh6 {[%clk 0:00:29.6]} 62. Ra8 {[%clk 0:00:26.4]} 62... Rf1+ {[%clk
0:00:29.9]} 63. Ke3 {[%clk 0:00:25.7]} 63... Kh7 {[%clk 0:00:25.6]} 64. Ra2
{[%clk 0:00:25.1]} 64... Rh1 {[%clk 0:00:22.6]} 65. Kf4 {[%clk 0:00:25.7]} 65...
Rg1 {[%clk 0:00:23.3]} 66. Rh2 {[%clk 0:00:25]} 66... Kh6 {[%clk 0:00:23.8]} 67.
Ra2 {[%clk 0:00:25.2]} 67... Rf1+ {[%clk 0:00:24.7]} 68. Ke3 {[%clk 0:00:25.7]}
68... g6 {[%clk 0:00:23.2]} 69. fxg6 {[%clk 0:00:25]} 69... Kxg6 {[%clk
0:00:24.3]} 70. Rg2+ {[%clk 0:00:25.4]} 70... Kh6 {[%clk 0:00:25.3]} 71. Rg8
{[%clk 0:00:25.1]} 71... h4 {[%clk 0:00:24.6]} 72. Rg4 {[%clk 0:00:21]} 72...
Kh5 {[%clk 0:00:21.2]} 73. Rg8 {[%clk 0:00:21.8]} 73... h3 {[%clk 0:00:20.9]}
74. Ke2 {[%clk 0:00:23]} 74... Rf4 {[%clk 0:00:20.2]} 75. Ke3 {[%clk 0:00:24.1]}
75... Rf1 {[%clk 0:00:17.3]} 76. Ke2 {[%clk 0:00:24.9]} 76... Ra1 {[%clk
0:00:12]} 77. Kf3 {[%clk 0:00:24.9]} 77... h2 {[%clk 0:00:13]} 78. Rh8+ {[%clk
0:00:25.4]} 78... Kg5 {[%clk 0:00:14.5]} 79. Rxh2 {[%clk 0:00:25.1]} 79... Ra3+
{[%clk 0:00:15.5]} 80. Kg2 {[%clk 0:00:23.8]} 80... Ra2+ {[%clk 0:00:16.5]} 81.
Kg3 {[%clk 0:00:24.7]} 81... Rxh2 {[%clk 0:00:18.4]} 82. Kxh2 {[%clk 0:00:25.9]}
82... Kf4 {[%clk 0:00:20]} 83. Kg1 {[%clk 0:00:20.6]} 83... Kxe4 {[%clk
0:00:20.6]} 84. Kg2 {[%clk 0:00:21.7]} 84... Ke3 {[%clk 0:00:21.6]} 85. Kg1
{[%clk 0:00:22]} 85... f5 {[%clk 0:00:21]} 86. Kg2 {[%clk 0:00:21.4]} 86... f4
{[%clk 0:00:21.7]} 87. Kg1 {[%clk 0:00:20.9]} 87... Ke2 {[%clk 0:00:22.7]} 0-1

[Event "*** Titled Tuesday 3|2 Blitz"]
[Site "Chess.com"]
[Date "2016.08.02"]
[Round "4"]
[White "macko06"]
[Black "maheswaran26"]
[Result "1-0"]
[WhiteElo "2111"]
[BlackElo "2028"]
[TimeControl "180+2"]
[EndTime "11:54:08 PDT"]
[Termination "macko06 won on time"]

1. d4 {[%clk 0:03:01.9]} 1... d6 {[%clk 0:02:56.5]} 2. Nf3 {[%clk 0:02:59.8]}
2... Nd7 {[%clk 0:02:51.2]} 3. e4 {[%clk 0:02:47]} 3... e5 {[%clk 0:02:49.8]} 4.
Nc3 {[%clk 0:02:47.9]} 4... Be7 {[%clk 0:02:44.1]} 5. Bc4 {[%clk 0:02:47.1]}
5... c6 {[%clk 0:02:42.2]} 6. a4 {[%clk 0:02:46.7]} 6... Ngf6 {[%clk 0:02:40.7]}
7. O-O {[%clk 0:02:45.5]} 7... O-O {[%clk 0:02:37.1]} 8. h3 {[%clk 0:02:45.3]}
8... Qc7 {[%clk 0:02:36.1]} 9. Re1 {[%clk 0:02:43.5]} 9... b6 {[%clk 0:02:36]}
10. b3 {[%clk 0:02:44.6]} 10... Bb7 {[%clk 0:02:35.7]} 11. Bb2 {[%clk
0:02:42.2]} 11... a6 {[%clk 0:02:33.8]} 12. Bd3 {[%clk 0:02:43.7]} 12... b5
{[%clk 0:02:28]} 13. dxe5 {[%clk 0:02:43.9]} 13... dxe5 {[%clk 0:02:21.5]} 14.
Bf1 {[%clk 0:02:33.8]} 14... Rfd8 {[%clk 0:02:15.7]} 15. Qe2 {[%clk 0:02:33.6]}
15... Nc5 {[%clk 0:02:05.1]} 16. Nd2 {[%clk 0:01:56.4]} 16... Ne6 {[%clk
0:02:01.4]} 17. Nf3 {[%clk 0:01:37.7]} 17... Nd4 {[%clk 0:01:55.8]} 18. Nxd4
{[%clk 0:01:36.6]} 18... exd4 {[%clk 0:01:56]} 19. Na2 {[%clk 0:01:31.8]} 19...
bxa4 {[%clk 0:01:49.5]} 20. bxa4 {[%clk 0:01:33.7]} 20... c5 {[%clk 0:01:49.7]}
21. f3 {[%clk 0:01:34.2]} 21... c4 {[%clk 0:01:42.5]} 22. Qxc4 {[%clk
0:01:32.6]} 22... Qg3 {[%clk 0:01:38.5]} 23. Qe2 {[%clk 0:01:20.3]} 23... Bc5
{[%clk 0:01:27.2]} 24. Kh1 {[%clk 0:01:09.2]} 24... Nh5 {[%clk 0:01:22.3]} 25.
Bc1 {[%clk 0:00:56.7]} 25... d3 {[%clk 0:01:13.3]} 26. cxd3 {[%clk 0:00:52.8]}
26... Qe5 {[%clk 0:01:13.8]} 27. f4 {[%clk 0:00:41.1]} 27... Ng3+ {[%clk
0:01:13.9]} 28. Kh2 {[%clk 0:00:40.7]} 28... Qxa1 {[%clk 0:01:00.1]} 29. Kxg3
{[%clk 0:00:38.2]} 29... Qf6 {[%clk 0:00:56]} 30. Bb2 {[%clk 0:00:31.4]} 30...
Bd4 {[%clk 0:00:56.4]} 31. Bxd4 {[%clk 0:00:25.3]} 31... Qxd4 {[%clk 0:00:57]}
32. Rc1 {[%clk 0:00:19.5]} 32... Rac8 {[%clk 0:00:56.7]} 33. Rxc8 {[%clk
0:00:19.2]} 33... Bxc8 {[%clk 0:00:53.8]} 34. Qd2 {[%clk 0:00:13.8]} 34... Qxe4
{[%clk 0:00:50]} 35. Qa5 {[%clk 0:00:10.2]} 35... Qd5 {[%clk 0:00:50]} 36. Qb6
{[%clk 0:00:09.7]} 36... h6 {[%clk 0:00:48.9]} 37. Nb4 {[%clk 0:00:10.3]} 37...
Qd6 {[%clk 0:00:49.2]} 38. Nc6 {[%clk 0:00:11.1]} 38... Re8 {[%clk 0:00:45.8]}
39. d4 {[%clk 0:00:07]} 39... Bd7 {[%clk 0:00:40.6]} 40. d5 {[%clk 0:00:04.9]}
40... Qxd5 {[%clk 0:00:41]} 41. Ne5 {[%clk 0:00:06.4]} 41... Qe6 {[%clk
0:00:40.3]} 42. Qc7 {[%clk 0:00:06]} 42... Rc8 {[%clk 0:00:26.8]} 43. Qxd7
{[%clk 0:00:06.7]} 43... Rc3+ {[%clk 0:00:27]} 44. Kh2 {[%clk 0:00:07.5]} 44...
Qxd7 {[%clk 0:00:25.4]} 45. Nxd7 {[%clk 0:00:09.4]} 45... Ra3 {[%clk 0:00:25.5]}
46. Nb6 {[%clk 0:00:06.9]} 46... a5 {[%clk 0:00:25.4]} 47. Bb5 {[%clk
0:00:07.1]} 47... Kf8 {[%clk 0:00:25.6]} 48. Nc4 {[%clk 0:00:08.1]} 48... Ra1
{[%clk 0:00:24.5]} 49. Nxa5 {[%clk 0:00:09.6]} 49... Ke7 {[%clk 0:00:25.4]} 50.
Nc4 {[%clk 0:00:10.9]} 50... Kd8 {[%clk 0:00:25.7]} 51. Ne5 {[%clk 0:00:12.3]}
51... Ke7 {[%clk 0:00:25.2]} 52. Nc6+ {[%clk 0:00:13.7]} 52... Kd6 {[%clk
0:00:25.7]} 53. Ne5 {[%clk 0:00:14.5]} 53... f6 {[%clk 0:00:26.3]} 54. Nf3
{[%clk 0:00:15.7]} 54... Ra3 {[%clk 0:00:26.1]} 55. Kg3 {[%clk 0:00:17]} 55...
g5 {[%clk 0:00:26]} 56. Kg4 {[%clk 0:00:16.6]} 56... Ra2 {[%clk 0:00:21.3]} 57.
g3 {[%clk 0:00:16.9]} 57... Rg2 {[%clk 0:00:19.2]} 58. Nd4 {[%clk 0:00:15.9]}
58... Ke7 {[%clk 0:00:14.5]} 59. Nf5+ {[%clk 0:00:16.7]} 59... Kf7 {[%clk
0:00:14.5]} 60. Nxh6+ {[%clk 0:00:18.1]} 60... Kg6 {[%clk 0:00:14.5]} 61. fxg5
{[%clk 0:00:15.2]} 61... fxg5 {[%clk 0:00:10.3]} 62. Nf5 {[%clk 0:00:16.4]}
62... Rd2 {[%clk 0:00:10.1]} 63. Ne7+ {[%clk 0:00:13.7]} 63... Kf6 {[%clk
0:00:10]} 64. Nc6 {[%clk 0:00:15.6]} 64... Rc2 {[%clk 0:00:08.4]} 65. h4 {[%clk
0:00:14.7]} 65... gxh4 {[%clk 0:00:06.9]} 66. gxh4 {[%clk 0:00:15.8]} 66... Rg2+
{[%clk 0:00:07.7]} 67. Kf3 {[%clk 0:00:16.4]} 67... Rh2 {[%clk 0:00:08.5]} 68.
Kg3 {[%clk 0:00:16.8]} 68... Rh1 {[%clk 0:00:09]} 69. Nd4 {[%clk 0:00:15.1]}
69... Rd1 {[%clk 0:00:02.1]} 70. Nf3 {[%clk 0:00:15.5]} 70... Ra1 {[%clk
0:00:02.7]} 71. Kf4 {[%clk 0:00:16.4]} 1-0